fUST/lending_fUST_20251216
["ID","MTS","AMOUNT","RATE_DAILY","PERIOD"]
[398570445,1765841439512,-500.0,0.00013273,2]
[398570446,1765841439522,-500.0,0.00013273,2]
[398570447,1765841439530,-500.0,0.00013273,2]
[398570448,1765841439539,-500.0,0.00013273,2]
[398570449,1765841439549,-500.0,0.00013273,2]
[398570450,1765841439558,-500.0,0.00013273,2]
[398570451,1765841439567,-500.0,0.00013273,2]
[398570452,1765841439576,-502.68426484,0.00013273,2]
[398570453,1765841439585,-500.0,0.00013273,2]
[398570454,1765841439594,-500.0,0.00013273,2]
[398570455,1765841439603,-823.0,0.00013309,2]
[398570456,1765841439612,-198.08824625,0.00013371,2]
[398570457,1765841439621,-160.0,0.00013371,2]
[398570458,1765841439630,-500.0,0.00013459,14]
[398570459,1765841439639,-663.93287602,0.00013575,2]
[398570460,1765841439648,-1000.0,0.00013629,2]
[398570461,1765841439657,-300.0,0.00013673,2]
[398570462,1765841439666,-33209.86635793,0.00013696,2]
[398570478,1765841440648,-210.35,0.000129,2]
[398570479,1765841440658,-210.35,0.00013,2]
[398570480,1765841440667,-115.64694714,0.00013,2]
[398570481,1765841440678,-94.70305286,0.00013,2]
[398570482,1765841440687,-210.35,0.000131,2]
[398570483,1765841440696,-210.35,0.000131,2]
[398570484,1765841440706,-118785.7454554,0.00013173,2]
[398570485,1765841440715,-210.35,0.000132,2]
[398570486,1765841440724,-159490.82710789,0.00013696,2]
[398570487,1765841440734,-500.0,0.00013697,15]
[398570488,1765841440744,-500.0,0.00013698,16]
[398570489,1765841440753,-500.0,0.00013698,17]
[398570490,1765841440762,-1841.39,0.00013698,2]
[398570491,1765841440771,-1841.39,0.00013698,2]
[398570492,1765841440781,-1841.39,0.00013698,2]
[398570494,1765841440791,-1841.39,0.00013698,2]
[398570495,1765841440801,-1841.39,0.00013698,2]
[398570496,1765841440810,-1841.39,0.00013698,2]
[398570497,1765841440821,-1841.39,0.00013698,2]
[398570498,1765841440831,-1841.39,0.00013698,2]
[398570499,1765841440842,-1841.39,0.00013698,2]
[398570500,1765841440852,-1841.39,0.00013698,2]
[398570501,1765841440861,-1841.39,0.00013698,2]
[398570502,1765841440870,-1841.39,0.00013698,2]
[398570503,1765841440881,-1841.39,0.00013698,2]
[398570504,1765841440890,-1841.39,0.00013698,2]
[398570505,1765841440901,-1841.39,0.00013698,2]
[398570506,1765841440910,-1841.39,0.00013698,2]
[398570507,1765841440920,-1841.39,0.00013698,2]
[398570508,1765841440929,-1841.39,0.00013698,2]
[398570509,1765841440939,-335.91969621,0.00013698,2]
[398570510,1765841440948,-383.52431602,0.00013698,2]
[398570511,1765841440958,-171.64646164,0.00013698,2]
[398570512,1765841440973,-640.0,0.00013699,2]
[398570513,1765841440982,-500.0,0.00013699,2]
[398570514,1765841440991,-500.0,0.00013699,2]
[398570515,1765841440999,-500.0,0.00013699,2]
[398570516,1765841441009,-501.33430539,0.00013699,2]
[398570517,1765841441018,-500.0,0.00013699,2]
[398570518,1765841441028,-500.0,0.00013699,2]
[398570519,1765841441039,-500.0,0.00013699,2]
[398570520,1765841441050,-500.0,0.00013699,2]
[398570521,1765841441060,-160.0,0.00013699,2]
[398570522,1765841441070,-167.60926473,0.00013749,2]
[398570523,1765841441079,-500.0,0.00013756,18]
[398570524,1765841441091,-516.8545338,0.00013759,2]
[398570525,1765841441109,-234.20482114,0.00013799,19]
[398570526,1765841441119,-1841.39,0.0001382,2]
[398570527,1765841441128,-538.23512892,0.00013821,2]
[398570528,1765841441144,-1001.03740899,0.00013821,2]
[398570529,1765841441163,-1006.91169835,0.00013821,2]
[398570530,1765841441174,-1000.0,0.00013821,2]
[398570531,1765841441184,-1000.0,0.00013821,2]
[398570532,1765841441193,-1000.0,0.00013821,2]
[398570533,1765841441202,-1000.0,0.00013821,2]
[398570534,1765841441212,-1000.0,0.00013821,2]
[398570535,1765841441222,-501.58409111,0.00013821,2]
[398570536,1765841441230,-501.7299145,0.00013821,2]
[398570537,1765841441240,-1002.87064404,0.00013821,2]
[398570538,1765841441250,-1000.0,0.00013821,2]
[398570539,1765841441260,-501.13222091,0.00013821,2]
[398570540,1765841441269,-1000.0,0.00013821,2]
[398570541,1765841441279,-501.52995415,0.00013821,2]
[398570542,1765841441288,-1000.0,0.00013821,2]
[398570543,1765841441297,-1002.61149073,0.00013821,2]
[398570544,1765841441307,-503.5228713,0.00013821,2]
[398570545,1765841441316,-1002.83669658,0.00013821,2]
[398570546,1765841441325,-501.77531595,0.00013821,2]
[398570547,1765841441335,-1000.0,0.00013821,2]
[398570548,1765841441344,-1000.0,0.00013821,2]
[398570549,1765841441354,-150.0,0.00013871,2]
[398570550,1765841441363,-308.65466733,0.00013884,2]
[398570551,1765841441372,-329.35071985,0.0001393,2]
[398570552,1765841441381,-597.6917384,0.00013973,2]
[398570553,1765841441392,-597.6917384,0.00013973,2]
[398570554,1765841441402,-597.6917384,0.00013973,2]
[398570555,1765841441411,-339.4475588,0.00013973,2]
[398570556,1765841441420,-384.02942096,0.00013995,2]
[398570557,1765841441433,-150.0,0.00014008,2]
[398570558,1765841441442,-3659.84176862,0.00014052,2]
[398570559,1765841441452,-182.15940557,0.00014081,2]
[398570560,1765841441461,-688.49839244,0.00014123,2]
[398570561,1765841441472,-150.0,0.00014145,2]
[398570562,1765841441482,-2148.0,0.00014217,2]
[398570563,1765841441491,-1361.0,0.00014217,2]
[398570564,1765841441502,-630.0,0.00014217,2]
[398570565,1765841441511,-415.0,0.00014217,2]
[398570566,1765841441521,-600.0,0.00014221,2]
[398570567,1765841441530,-2472.46625095,0.00014232,2]
[398570568,1765841441539,-1841.39,0.00014236,2]
[398570569,1765841441550,-1841.39,0.00014236,2]
[398570570,1765841441559,-1841.39,0.00014236,2]
[398570571,1765841441568,-1841.39,0.00014236,2]
[398570572,1765841441577,-1841.50558386,0.00014236,2]
[398570573,1765841441586,-281.19899906,0.00014247,2]
[398570574,1765841441595,-597.32979695,0.00014247,2]
[398570575,1765841441604,-294.80650294,0.00014247,2]
[398570576,1765841441614,-1001.74853906,0.00014247,2]
[398570577,1765841441623,-1000.0,0.00014247,2]
[398570578,1765841441633,-500.0,0.00014247,2]
[398570579,1765841441642,-500.0,0.00014247,2]
[398570580,1765841441651,-260.0,0.00014247,2]
[398570581,1765841441660,-200.0,0.00014282,2]
[398570582,1765841441669,-167.60926473,0.00014324,2]
[398570583,1765841441678,-475.0,0.00014368,2]
[398570584,1765841441687,-475.0,0.00014368,2]
[398570585,1765841441697,-475.0,0.00014368,2]
[398570586,1765841441706,-475.0,0.00014368,2]
[398570587,1765841441715,-475.0,0.00014368,2]
[398570588,1765841441725,-475.0,0.00014368,2]
[398570589,1765841441734,-475.0,0.00014368,2]
[398570590,1765841441743,-475.0,0.00014368,2]
[398570591,1765841441752,-475.0,0.00014368,2]
[398570592,1765841441761,-475.0,0.00014368,2]
[398570593,1765841441770,-475.0,0.00014368,2]
[398570594,1765841441779,-475.0,0.00014368,2]
[398570595,1765841441789,-475.0,0.00014368,2]
[398570596,1765841441797,-475.0,0.00014368,2]
[398570597,1765841441807,-475.0,0.00014368,2]
[398570598,1765841441816,-475.0,0.00014368,2]
[398570599,1765841441825,-475.0,0.00014368,2]
[398570600,1765841441836,-475.0,0.00014368,2]
[398570601,1765841441845,-475.0,0.00014368,2]
[398570602,1765841441855,-987.23198141,0.00014368,2]
[398570603,1765841441864,-971.09934212,0.00014368,2]
[398570604,1765841441873,-1001.16462744,0.00014368,2]
[398570605,1765841441882,-1500.0,0.00014368,2]
[398570606,1765841441891,-1501.91287542,0.00014368,2]
[398570607,1765841441900,-666.9779569,0.00014368,2]
[398570608,1765841441910,-1500.0,0.00014368,2]
[398570609,1765841441921,-1500.0,0.00014368,2]
[398570610,1765841441930,-502.95297064,0.00014368,2]
[398570611,1765841441940,-1500.0,0.00014368,2]
[398570612,1765841441949,-151.0,0.000145,2]
[398570613,1765841441958,-151.0,0.000146,2]
[398570614,1765841441967,-151.0,0.000146,2]
[398570615,1765841441977,-1152.0,0.0001464,2]
[398570616,1765841441986,-734.91485968,0.00014671,2]
[398570617,1765841441995,-305.27576556,0.00014768,2]
[398570618,1765841442004,-1500.0,0.00014795,2]
[398570619,1765841442013,-302.3095124,0.00014795,2]
[398570620,1765841442022,-300.6943778,0.00014795,2]
[398570621,1765841442031,-360.0,0.00014795,2]
[398570622,1765841442040,-3000.0,0.000148,2]
[398570623,1765841442049,-151.0,0.000148,2]
[398570624,1765841442058,-151.0,0.000149,2]
[398570625,1765841442067,-167.60926473,0.000149,2]
[398570626,1765841442076,-1506.98498645,0.00014916,2]
[398570627,1765841442085,-2000.0,0.00014916,2]
[398570628,1765841442095,-2000.0,0.00014916,2]
[398570629,1765841442104,-2000.0,0.00014916,2]
[398570630,1765841442113,-1000.0,0.00014992,2]
[398570631,1765841442123,-244.0,0.00014992,2]
[398570632,1765841442132,-160.3262007,0.00014999,2]
[398570633,1765841442141,-200.0,0.00014999,2]
[398570634,1765841442151,-200.40378325,0.00014999,2]
[398570635,1765841442160,-200.0,0.00014999,2]
[398570636,1765841442169,-346.527734,0.00015,2]
[398570637,1765841442178,-633.30216228,0.00015,2]
[398570638,1765841442187,-159.67,0.00015,2]
[398570639,1765841442196,-52625.82848299,0.00015,7]
[398570699,1765841443747,-500.0,0.00010849,2]
[398570700,1765841443756,-41.65,0.00010849,2]
[398570739,1765841446550,-458.35,0.00010849,2]
[398570740,1765841446559,-210.35,0.000133,2]
[398570741,1765841446568,-72.36703611,0.000133,2]
[398570742,1765841446616,-137.98296389,0.000133,2]
[398570743,1765841446626,-210.35,0.000134,2]
[398570744,1765841446635,-210.35,0.000135,2]
[398570745,1765841446646,-210.35,0.000135,2]
[398570746,1765841446655,-210.35,0.000136,2]
[398570747,1765841446664,-210.35,0.000137,2]
[398570748,1765841446672,-210.35,0.000137,2]
[398570749,1765841446680,-210.35,0.000138,2]
[398570750,1765841446689,-210.35,0.000138,2]
[398570751,1765841446696,-210.35,0.000139,2]
[398570752,1765841446704,-210.35,0.00014,2]
[398570753,1765841446711,-210.35,0.00014,2]
[398570754,1765841446720,-210.35,0.000141,2]
[398570755,1765841446728,-183.44869096,0.000142,2]
[398570765,1765842096722,-351.9448901,0.00025,120]
[398570766,1765842097263,-351.9448901,0.0002849,120]
[398570767,1765842097383,-651.26665124,0.0002849,120]
[398570768,1765842097971,-206.09940658,0.0002876,120]
[398570769,1765842098079,-587.80118684,0.0002876,120]
[398570770,1765842098457,-744.94432599,0.0003,120]
[398570771,1765842098723,-651.26665124,0.0003,120]
[398570772,1765842098744,-381.1915504,0.0003,120]
[398570773,1765842098754,-212.33479376,0.0003,120]
[398570774,1765842099034,-793.90059342,0.00030136,120]
[398570775,1765842099114,-206.09940658,0.00030136,120]
[398570776,1765842099123,-232.98134576,0.00030136,120]
[398570777,1765842099447,-699.279982,0.00030137,120]
[398570778,1765842099456,-300.720018,0.00030137,120]
[398570780,1765842432117,-1395.0922793,0.00010834,2]
[398570781,1765842432140,-271.58685072,0.00011116,2]
[398570782,1765842432162,-300.0,0.00011399,2]
[398570783,1765842432184,-580.0,0.000114,2]
[398570784,1765842432204,-7598.69820745,0.000114,2]
[398570822,1765842631695,-10000.0,0.000114,2]
[398570824,1765842631705,-580.0,0.000114,2]
[398570826,1765842631714,-300.0,0.0001166,2]
[398570828,1765842631723,-1348.231,0.00011662,2]
[398570830,1765842631731,-415.0,0.00011662,2]
[398570831,1765842631740,-154.9841517,0.00011868,2]
[398570833,1765842631749,-500.0,0.00011886,2]
[398570835,1765842631759,-500.0,0.00011886,2]
[398570838,1765842631768,-500.0,0.00011886,2]
[398570840,1765842631777,-371.20697706,0.00011886,2]
[398570842,1765842631786,-519.22740131,0.00011886,2]
[398570844,1765842631795,-500.0,0.00011886,2]
[398570845,1765842631804,-342.71578019,0.00011886,2]
[398570847,1765842631813,-500.0,0.00011886,2]
[398570849,1765842631822,-500.0,0.00011886,2]
[398570851,1765842631831,-519.22740131,0.00011886,2]
[398570853,1765842631840,-383.24685471,0.00011886,2]
[398570855,1765842631849,-226.73631449,0.00011886,2]
[398570857,1765842631859,-500.0,0.00011886,2]
[398570859,1765842631868,-519.22740131,0.00011886,2]
[398570861,1765842631877,-500.0,0.00011886,2]
[398570863,1765842631886,-326.49784716,0.00011886,2]
[398570868,1765842631931,-192.72955415,0.00011886,2]
[398570870,1765842631940,-500.0,0.00011886,2]
[398570872,1765842631949,-519.22740131,0.00011886,2]
[398570874,1765842631958,-500.0,0.00011886,2]
[398570875,1765842631967,-519.22740131,0.00011886,2]
[398570876,1765842631976,-500.0,0.00011886,2]
[398570877,1765842631985,-519.22740131,0.00011886,2]
[398570878,1765842631994,-519.22740131,0.00011886,2]
[398570881,1765842632003,-519.22740131,0.00011886,2]
[398570882,1765842632013,-519.22740131,0.00011886,2]
[398570884,1765842632022,-519.22740131,0.00011886,2]
[398570886,1765842632031,-519.22740131,0.00011886,2]
[398570887,1765842632043,-519.22740131,0.00011886,2]
[398570888,1765842632052,-519.22740131,0.00011886,2]
[398570889,1765842632061,-519.22740131,0.00011886,2]
[398570890,1765842632071,-519.22740131,0.00011886,2]
[398570891,1765842632080,-519.22740131,0.00011886,2]
[398570892,1765842632090,-519.22740131,0.00011886,2]
[398570893,1765842632099,-519.22740131,0.00011886,2]
[398570894,1765842632110,-519.22740131,0.00011886,2]
[398570895,1765842632119,-519.22740131,0.00011886,2]
[398570896,1765842632128,-519.22740131,0.00011886,2]
[398570897,1765842632137,-519.22740131,0.00011886,2]
[398570898,1765842632147,-519.22740131,0.00011886,2]
[398570899,1765842632156,-519.22740131,0.00011886,2]
[398570900,1765842632167,-519.22740131,0.00011886,2]
[398570901,1765842632176,-519.22740131,0.00011886,2]
[398570902,1765842632185,-519.22740131,0.00011886,2]
[398570903,1765842632194,-519.22740131,0.00011886,2]
[398570904,1765842632203,-519.22740131,0.00011886,2]
[398570905,1765842632211,-519.22740131,0.00011886,2]
[398570906,1765842632220,-519.22740131,0.00011886,2]
[398570907,1765842632229,-519.22740131,0.00011886,2]
[398570908,1765842632238,-519.22740131,0.00011886,2]
[398570909,1765842632247,-519.22740131,0.00011886,2]
[398570910,1765842632255,-519.22740131,0.00011886,2]
[398570911,1765842632264,-519.22740131,0.00011886,2]
[398570912,1765842632273,-519.22740131,0.00011886,2]
[398570913,1765842632283,-519.22740131,0.00011886,2]
[398570914,1765842632291,-519.22740131,0.00011886,2]
[398570915,1765842632300,-515.98223005,0.00011886,2]
[398570916,1765842632309,-515.98223005,0.00011886,2]
[398570917,1765842632318,-515.98223005,0.00011886,2]
[398570918,1765842632327,-515.98223005,0.00011886,2]
[398570919,1765842632336,-515.98223005,0.00011886,2]
[398570920,1765842632345,-515.98223005,0.00011886,2]
[398570921,1765842632354,-515.98223005,0.00011886,2]
[398570922,1765842632363,-515.98223005,0.00011886,2]
[398570923,1765842632372,-515.98223005,0.00011886,2]
[398570924,1765842632381,-515.98223005,0.00011886,2]
[398570925,1765842632390,-515.98223005,0.00011886,2]
[398570926,1765842632399,-515.98223005,0.00011886,2]
[398570927,1765842632408,-515.98223005,0.00011886,2]
[398570928,1765842632417,-515.98223005,0.00011886,2]
[398570929,1765842632426,-515.98223005,0.00011886,2]
[398570930,1765842632435,-515.98223005,0.00011886,2]
[398570931,1765842632444,-515.98223005,0.00011886,2]
[398570932,1765842632453,-515.98223005,0.00011886,2]
[398570933,1765842632462,-515.98223005,0.00011886,2]
[398570934,1765842632472,-515.98223005,0.00011886,2]
[398570935,1765842632482,-515.98223005,0.00011886,2]
[398570936,1765842632491,-515.98223005,0.00011886,2]
[398570937,1765842632500,-515.98223005,0.00011886,2]
[398570938,1765842632509,-515.98223005,0.00011886,2]
[398570939,1765842632518,-515.98223005,0.00011886,2]
[398570940,1765842632527,-515.98223005,0.00011886,2]
[398570941,1765842632536,-515.98223005,0.00011886,2]
[398570942,1765842632545,-515.98223005,0.00011886,2]
[398570943,1765842632555,-515.98223005,0.00011886,2]
[398570944,1765842632564,-515.98223005,0.00011886,2]
[398570945,1765842632573,-515.98223005,0.00011886,2]
[398570946,1765842632583,-515.98223005,0.00011886,2]
[398570947,1765842632592,-500.0,0.00011886,2]
[398570948,1765842632601,-500.0,0.00011886,2]
[398570949,1765842632610,-500.0,0.00011886,2]
[398570950,1765842632620,-500.0,0.00011886,2]
[398570951,1765842632629,-500.0,0.00011886,2]
[398570952,1765842632638,-425.48705348,0.00011886,2]
[398570953,1765842632646,-500.0,0.00011886,2]
[398570954,1765842632655,-500.0,0.00011886,2]
[398570955,1765842632665,-500.0,0.00011886,2]
[398570956,1765842632674,-500.0,0.00011886,2]
[398570957,1765842632683,-500.0,0.00011886,2]
[398570958,1765842632692,-500.0,0.00011886,2]
[398570959,1765842632701,-500.0,0.00011886,2]
[398570960,1765842632709,-500.0,0.00011886,2]
[398570961,1765842632718,-270.39988276,0.00011886,2]
[398571002,1765842637674,-466.72499732,0.00011885,2]
[398571004,1765842637684,-213.55395772,0.00011886,2]
[398571020,1765842637802,-2747.3264901,0.00011886,2]
[398571022,1765842637812,-300.0,0.00011894,2]
[398571023,1765842637822,-300.0,0.00011894,2]
[398571025,1765842637831,-300.0,0.00011894,2]
[398571026,1765842637839,-300.0,0.00011894,2]
[398571027,1765842637848,-300.0,0.00011894,2]
[398571028,1765842637857,-300.0,0.00011894,2]
[398571029,1765842637867,-300.0,0.00011894,2]
[398571030,1765842637875,-300.0,0.00011894,2]
[398571031,1765842637884,-300.0,0.00011894,2]
[398571032,1765842638073,-300.0,0.00011894,2]
[398571033,1765842638158,-300.0,0.00011894,2]
[398571034,1765842638169,-300.0,0.00011894,2]
[398571035,1765842638178,-300.0,0.00011894,2]
[398571036,1765842638188,-300.0,0.00011894,2]
[398571037,1765842638197,-300.0,0.00011894,2]
[398571038,1765842638206,-342.05,0.00012,2]
[398571039,1765842638215,-170.81990869,0.000121,2]
[398571040,1765842638227,-171.23009131,0.000121,2]
[398571041,1765842638236,-226.31095365,0.000121,2]
[398571160,1765842640220,-115.73904635,0.000121,2]
[398571161,1765842640230,-600.0,0.00012131,2]
[398571162,1765842640240,-337.32399218,0.000122,2]
[398571192,1765842645805,-4.72600782,0.000122,2]
[398571193,1765842645814,-342.05,0.000123,2]
[398571194,1765842645823,-342.05,0.000123,2]
[398571195,1765842645832,-342.05,0.000124,2]
[398571196,1765842645841,-342.05,0.000124,2]
[398571197,1765842645851,-1776.50477535,0.00012463,2]
[398571199,1765843604834,169.64,0.0001,2]
[398571200,1765843612123,-353.349,0.00010152,2]
[398571201,1765843627304,-300.0,0.00010151,2]
[398571202,1765843627326,-2725.43123322,0.00010152,2]
[398571224,1765843831817,-300.0,0.0001015,2]
[398571226,1765843831826,-132.41893452,0.0001015,2]
[398571233,1765843831884,-1051.36153862,0.0001015,2]
[398571331,1765843838053,-485.94488845,0.0001015,2]
[398571333,1765843838063,-16.21952686,0.0001015,2]
[398571335,1765843838073,-300.0,0.0001015,2]
[398571337,1765843838082,-363.6036402,0.0001015,2]
[398571339,1765843838095,-198.3963598,0.0001015,2]
[398571341,1765843838104,-195.0,0.0001015,2]
[398571343,1765843838113,-236.61727461,0.00010151,2]
[398571344,1765843838122,-18601.85008343,0.00010151,2]
[398571345,1765843838155,-782.05199346,0.00010151,2]
[398571346,1765843838166,-7439.7168749,0.00010151,2]
[398571347,1765843838176,-1200.0,0.00010151,2]
[398571348,1765843838185,-298.19415222,0.00010151,2]
[398571349,1765843838195,-500.0,0.00010153,2]
[398571350,1765843838204,-21090.3947268,0.00010154,2]
[398571351,1765843838214,-169.64,0.000102,2]
[398571352,1765843838223,-600.0,0.00010355,2]
[398571353,1765843838231,-300.0,0.00010356,2]
[398571354,1765843838241,-300.0,0.00010356,2]
[398571355,1765843838250,-300.0,0.00010356,2]
[398571356,1765843838259,-300.0,0.00010356,2]
[398571357,1765843838269,-300.0,0.00010356,2]
[398571358,1765843838278,-300.0,0.00010356,2]
[398571359,1765843838288,-300.0,0.00010356,2]
[398571360,1765843838297,-300.0,0.00010356,2]
[398571361,1765843838306,-300.0,0.00010356,2]
[398571362,1765843838315,-300.0,0.00010356,2]
[398571363,1765843838325,-300.0,0.00010356,2]
[398571364,1765843838334,-300.0,0.00010356,2]
[398571365,1765843838343,-300.0,0.00010356,2]
[398571366,1765843838352,-300.0,0.00010356,2]
[398571367,1765843838361,-300.0,0.00010356,2]
[398571368,1765843838370,-500.0,0.00010427,2]
[398571369,1765843838379,-500.0,0.00010701,2]
[398571370,1765843838388,-192.0306522,0.00010826,2]
[398571371,1765843838397,-10000.0,0.000109,2]
[398571372,1765843838406,-1066.8650835,0.00010998,2]
[398571373,1765843838415,-420.0,0.00011163,2]
[398571374,1765843838425,-410.0,0.00011163,2]
[398571375,1765843838434,-634.0,0.00011164,2]
[398571376,1765843838443,-1601.0,0.00011165,2]
[398571377,1765843838452,-2328.25040604,0.00011297,2]
[398571378,1765843838462,-720.0,0.0001139,2]
[398571379,1765843838471,-1361.0,0.00011662,2]
[398571380,1765843838481,-2157.0,0.00011662,2]
[398571381,1765843838490,-415.0,0.00011662,2]
[398571382,1765843838498,-151.0,0.00011874,2]
[398571383,1765843838508,-151.0,0.00011874,2]
[398571384,1765843838517,-151.0,0.00011874,2]
[398571385,1765843838526,-151.0,0.00011874,2]
[398571386,1765843838535,-151.0,0.00011874,2]
[398571387,1765843838545,-151.0,0.00011874,2]
[398571388,1765843838554,-271.47118896,0.00011874,2]
[398571389,1765843838564,-155.76765217,0.00011882,2]
[398571390,1765843838576,-3468.2729413,0.00011982,2]
[398571391,1765843838585,-13191.8772795,0.00011982,2]
[398571392,1765843838594,-387.6409003,0.00011982,2]
[398571393,1765843838604,-345.74,0.00012,2]
[398571394,1765843838614,-345.74,0.000121,2]
[398571395,1765843838623,-345.74,0.000121,2]
[398571396,1765843838633,-351.86909962,0.00012151,2]
[398571397,1765843838642,-345.74,0.000122,2]
[398571398,1765843838652,-587.0,0.00012278,2]
[398571399,1765843838662,-2472.46625095,0.00012293,2]
[398571400,1765843838672,-345.74,0.000123,2]
[398571401,1765843838681,-345.74,0.000123,2]
[398571402,1765843838690,-2000.0,0.000124,2]
[398571403,1765843838700,-345.74,0.000124,2]
[398571404,1765843838710,-345.74,0.000124,2]
[398571405,1765843838719,-345.74,0.000125,2]
[398571406,1765843838729,-864.0,0.00012529,2]
[398571407,1765843838738,-345.74,0.000126,2]
[398571408,1765843838748,-345.74,0.000126,2]
[398571409,1765843838758,-155.76765215,0.00012637,2]
[398571410,1765843838768,-250.0,0.00012659,2]
[398571411,1765843838777,-345.74,0.000127,2]
[398571412,1765843838787,-1281.86,0.00012734,2]
[398571413,1765843838796,-345.74,0.000128,2]
[398571414,1765843838805,-345.74,0.000128,2]
[398571415,1765843838815,-1978.63889379,0.00012871,2]
[398571430,1765843840138,-794.9290114,0.00012871,2]
[398571431,1765843840147,-77.3609886,0.00012871,2]
[398571432,1765843840159,-617.29640782,0.00012871,2]
[398571434,1765843840170,-2461.20683157,0.00012871,2]
[398571436,1765843840180,-345.74,0.000129,2]
[398571437,1765843840190,-345.74,0.00013,2]
[398571439,1765843840204,-345.74,0.00013,2]
[398571440,1765843840214,-345.74,0.000131,2]
[398571441,1765843840223,-345.74,0.000131,2]
[398571442,1765843840232,-773.0,0.000131,2]
[398571444,1765843840242,-345.74,0.000132,2]
[398571446,1765843840251,-500.0,0.00013273,2]
[398571448,1765843840260,-500.0,0.00013273,2]
[398571449,1765843840271,-500.0,0.00013273,2]
[398571450,1765843840280,-500.0,0.00013273,2]
[398571451,1765843840290,-500.0,0.00013273,2]
[398571452,1765843840300,-500.0,0.00013273,2]
[398571453,1765843840309,-500.0,0.00013273,2]
[398571454,1765843840319,-500.0,0.00013273,2]
[398571455,1765843840328,-500.0,0.00013273,2]
[398571456,1765843840337,-500.0,0.00013273,2]
[398571457,1765843840346,-500.0,0.00013273,2]
[398571458,1765843840355,-500.0,0.00013273,2]
[398571459,1765843840364,-457.96658946,0.00013273,2]
[398571460,1765843840373,-500.0,0.00013273,2]
[398571461,1765843840383,-615.26183664,0.00013273,2]
[398571462,1765843840392,-500.0,0.00013273,2]
[398571463,1765843840400,-500.0,0.00013273,2]
[398571464,1765843840409,-387.6409003,0.00013295,2]
[398571465,1765843840418,-345.74,0.000133,2]
[398571466,1765843840427,-345.74,0.000133,2]
[398571467,1765843840437,-5989.58287851,0.00013326,2]
[398571468,1765843840448,-4951.0,0.00013326,2]
[398571479,1765843843084,-2251.29440099,0.00013326,2]
[398571480,1765843843094,-198.08824625,0.0001333,2]
[398571481,1765843843103,-160.0,0.0001333,2]
[398571482,1765843843112,-155.76765215,0.00013391,2]
[398571483,1765843843121,-345.74,0.000134,2]
[398571484,1765843843131,-345.74,0.000135,2]
[398571486,1765843843140,-345.74,0.000135,2]
[398571488,1765843843149,-823.0,0.00013503,2]
[398571489,1765843843158,-368.876,0.00013575,2]
[398571490,1765843843167,-345.74,0.000136,2]
[398571491,1765843843176,-3468.2729413,0.00013615,2]
[398571492,1765843843185,-300.0,0.00013673,2]
[398571493,1765843843193,-500.0,0.00013698,2]
[398571494,1765843843202,-629.89626879,0.00013698,2]
[398571495,1765843843212,-500.0,0.00013698,2]
[398571496,1765843843221,-500.0,0.00013698,2]
[398571497,1765843843230,-500.0,0.00013698,2]
[398571498,1765843843239,-500.0,0.00013698,2]
[398571499,1765843843248,-500.0,0.00013698,2]
[398571500,1765843843257,-500.0,0.00013698,2]
[398571501,1765843843266,-500.0,0.00013698,2]
[398571502,1765843843275,-500.0,0.00013698,2]
[398571503,1765843843284,-500.0,0.00013698,2]
[398571504,1765843843293,-500.0,0.00013698,2]